fUST/lending_fUST_20250313
["ID","MTS","AMOUNT","RATE_DAILY","PERIOD"]
[356042895,1741828238589,-500.0,0.00015978,2]
[356042896,1741828238599,-500.0,0.00015978,2]
[356042897,1741828238608,-500.0,0.00015978,2]
[356042898,1741828238618,-500.0,0.00015978,2]
[356042899,1741828238628,-500.0,0.00015978,2]
[356042900,1741828238637,-500.0,0.00015978,2]
[356042901,1741828238647,-500.0,0.00015978,2]
[356042902,1741828238656,-500.0,0.00015978,2]
[356042903,1741828238665,-500.0,0.00015978,2]
[356042904,1741828238675,-500.0,0.00015978,2]
[356042905,1741828238684,-500.0,0.00015978,2]
[356042906,1741828238693,-500.0,0.00015978,2]
[356042907,1741828238702,-500.0,0.00015978,2]
[356042908,1741828238711,-461.07213436,0.00015978,2]
[356042909,1741828238720,-500.0,0.00015978,2]
[356042910,1741828238729,-500.0,0.00015978,2]
[356042911,1741828238738,-500.0,0.00015978,2]
[356042912,1741828238748,-500.0,0.00015978,2]
[356042913,1741828238759,-500.0,0.00015978,2]
[356042914,1741828238768,-500.0,0.00015978,2]
[356042915,1741828238778,-500.0,0.00015978,2]
[356042916,1741828238787,-500.0,0.00015978,2]
[356042917,1741828238797,-500.0,0.00015978,2]
[356042918,1741828238806,-500.0,0.00015978,2]
[356042919,1741828238816,-500.0,0.00015978,2]
[356042920,1741828238825,-500.0,0.00015978,2]
[356042921,1741828238835,-500.0,0.00015978,2]
[356042922,1741828238844,-500.0,0.00015978,2]
[356042923,1741828238854,-500.0,0.00015978,2]
[356042924,1741828238863,-500.0,0.00015978,2]
[356042925,1741828238872,-500.0,0.00015978,2]
[356042926,1741828238882,-500.0,0.00015978,2]
[356042927,1741828238891,-500.0,0.00015978,2]
[356042928,1741828238901,-4940.28865763,0.0001598,2]
[356042929,1741828238913,-4675.70335492,0.0001598,2]
[356043182,1741828254374,-409.10400838,0.00015975,2]
[356043183,1741828258327,-500.0,0.00015975,2]
[356043186,1741828323976,-300.0,0.00015975,2]
[356043187,1741828326187,-246.06,0.00015975,2]
[356043188,1741828340241,-500.0,0.00015975,2]
[356043189,1741828348395,-500.0,0.00015975,2]
[356043190,1741828352738,-287.02669282,0.00015975,2]
[356043191,1741828352761,-212.97330718,0.00015977,2]
[356043193,1741828382755,-500.0,0.00015977,2]
[356043194,1741828387319,-1000.0,0.000159,2]
[356043195,1741828388934,-300.0,0.00015976,2]
[356043196,1741828388960,-200.0,0.00015977,2]
[356043197,1741828389973,-300.0,0.00015977,2]
[356043198,1741828392150,-156.96723526,0.00015877,2]
[356043199,1741828392177,-343.03276474,0.00015977,2]
[356043200,1741828443001,-300.0,0.00015976,2]
[356043201,1741828443996,-17.89983131,0.00015977,2]
[356043202,1741828444027,-482.10016869,0.00015977,2]
[356043203,1741828474560,-178.03347086,0.00015976,2]
[356043204,1741828476755,-321.96652914,0.00015976,2]
[356043205,1741828476781,-178.03347086,0.00015976,2]
[356043206,1741828478598,-321.96652914,0.00015976,2]
[356043207,1741828479677,-321.96652914,0.00015976,2]
[356043208,1741828519780,-239.17347086,0.00015976,2]
[356043209,1741828526725,-260.82652914,0.00015976,2]
[356043210,1741828526752,-239.17347086,0.00015976,2]
[356043211,1741828528820,-260.82652914,0.00015976,2]
[356043212,1741828531412,-500.0,0.00015976,2]
[356043213,1741828535663,-129.56,0.00015976,2]
[356043214,1741828535684,-370.44,0.00015976,2]
[356043215,1741828557451,-156.96723526,0.00015876,2]
[356043216,1741828557473,-129.56,0.00015976,2]
[356043217,1741828557495,-213.47276474,0.00015976,2]
[356043218,1741828560526,-286.52723526,0.00015976,2]
[356043219,1741828561967,-500.0,0.00015976,2]
[356043220,1741828564296,-300.0,0.00015975,2]
[356043221,1741828564320,-200.0,0.00015976,2]
[356043222,1741828567178,-300.0,0.00015976,2]
[356043223,1741828568373,-178.03347086,0.00015976,2]
[356043224,1741828568400,-321.96652914,0.00015976,2]
[356043225,1741828571962,-178.03347086,0.00015976,2]
[356043226,1741828573067,-500.0,0.00015976,2]
[356043227,1741828574631,-500.0,0.00015976,2]
[356043228,1741828577432,-500.0,0.00015976,2]
[356043229,1741828579030,-1453.92276474,0.00015976,2]
[356043230,1741828586552,-500.0,0.00015976,2]
[356043231,1741828590146,-246.4,0.00015976,2]
[356043232,1741828598824,-500.0,0.00015976,2]
[356043233,1741828606576,-500.0,0.00015976,2]
[356043234,1741828673261,-156.96723526,0.00015875,2]
[356043235,1741828674828,-300.0,0.00015974,2]
[356043236,1741828674855,-57.13276474,0.00015975,2]
[356043237,1741828712588,500.0,0.00015974,2]
[356043238,1741828713752,-500.0,0.00015974,2]
[356043239,1741828714729,-500.0,0.00015974,2]
[356043241,1741828744167,-300.0,0.00015973,2]
[356043242,1741828745878,-223.96085694,0.00015974,2]
[356043243,1741828805600,-156.96723526,0.00015874,2]
[356043244,1741828805633,-32.53189039,0.00015964,2]
[356043247,1741828944751,-300.0,0.0001588,2]
[356043267,1741828967185,-549.0,0.0001588,2]
[356043273,1741828983142,-1438.0083,0.000155,2]
[356043276,1741829011212,-227.4927,0.0001578,2]
[356043357,1741829441528,-0.00200552,0.00015874,2]
[356043420,1741829446930,-299.99799448,0.00015874,2]
[356043421,1741829446940,-188.9746239,0.00015874,2]
[356043422,1741829446949,-546.23519968,0.00015874,2]
[356043423,1741829446958,-3289.79218194,0.00015875,2]
[356043424,1741829446969,-1723.826762,0.00015875,2]
[356043438,1741829795542,-166.51047634,0.00014874,2]
[356043442,1741830066072,-70.52098546,0.00014874,2]
[356043443,1741830066095,-216.90901454,0.0001577,2]
[356043444,1741830080292,-105.35398406,0.0001577,2]
[356043445,1741830080316,-181.80437609,0.00015773,2]
[356043446,1741830080340,-12.84163985,0.00015868,2]
[356043447,1741830534136,-281.98012374,0.00015766,2]
[356043448,1741830566692,-3365.95094489,0.00015642,2]
[356043449,1741830581363,-300.0,0.00015799,2]
[356043450,1741830581411,-2000.0,0.000158,2]
[356043451,1741830581451,-2000.0,0.000158,3]
[356043452,1741830581487,-2000.0,0.000158,4]
[356043453,1741830581523,-1700.0,0.000158,5]
[356043472,1741830633142,-246.73260829,0.00015765,2]
[356043473,1741830633152,-300.0,0.000158,5]
[356043474,1741830633162,-15005.64,0.00015865,2]
[356043475,1741830633171,-2276.22,0.00015865,2]
[356043476,1741830633181,-955.99,0.00015865,2]
[356043477,1741830633191,-151.0,0.00015865,2]
[356043478,1741830633200,-154.944099,0.00015865,2]
[356043479,1741830633209,-151.0,0.00015865,2]
[356043480,1741830633218,-151.0,0.00015865,2]
[356043481,1741830633228,-151.0,0.00015865,2]
[356043482,1741830633237,-151.0,0.00015865,2]
[356043483,1741830633247,-151.0,0.00015865,2]
[356043484,1741830633256,-151.0,0.00015865,2]
[356043485,1741830633266,-163.180145,0.00015865,2]
[356043486,1741830633275,-292.988228,0.00015865,2]
[356043487,1741830633285,-292.988228,0.00015865,2]
[356043488,1741830633294,-292.988228,0.00015865,2]
[356043489,1741830633304,-292.988228,0.00015865,2]
[356043490,1741830633313,-292.988228,0.00015865,2]
[356043491,1741830633322,-292.988228,0.00015865,2]
[356043492,1741830633332,-292.988228,0.00015865,2]
[356043493,1741830633342,-292.988228,0.00015865,2]
[356043494,1741830633352,-292.988228,0.00015865,2]
[356043495,1741830633362,-292.988228,0.00015865,2]
[356043496,1741830633371,-292.988228,0.00015865,2]
[356043497,1741830633381,-292.988228,0.00015865,2]
[356043498,1741830633391,-292.988228,0.00015865,2]
[356043499,1741830633401,-292.988228,0.00015865,2]
[356043500,1741830633410,-151.0,0.00015865,2]
[356043501,1741830633420,-165.010403,0.00015865,2]
[356043502,1741830633429,-584.38,0.00015865,2]
[356043503,1741830633439,-3993.88617911,0.00015865,2]
[356043543,1741830642930,-326.16058683,0.00015864,2]
[356043544,1741830642948,-173.83941317,0.00015864,2]
[356043545,1741830642957,-500.0,0.00015864,2]
[356043546,1741830642967,-500.0,0.00015864,2]
[356043547,1741830642977,-500.0,0.00015864,2]
[356043548,1741830642987,-500.0,0.00015864,2]
[356043549,1741830642996,-500.0,0.00015864,2]
[356043550,1741830643006,-500.0,0.00015864,2]
[356043551,1741830643015,-500.0,0.00015864,2]
[356043552,1741830643025,-500.0,0.00015864,2]
[356043553,1741830643034,-500.0,0.00015864,2]
[356043554,1741830643045,-500.0,0.00015864,2]
[356043555,1741830643054,-500.0,0.00015864,2]
[356043556,1741830643064,-500.0,0.00015864,2]
[356043557,1741830643074,-500.0,0.00015864,2]
[356043558,1741830643084,-500.0,0.00015864,2]
[356043559,1741830643093,-500.0,0.00015864,2]
[356043560,1741830643103,-500.0,0.00015864,2]
[356043561,1741830643113,-500.0,0.00015864,2]
[356043562,1741830643123,-30.61058683,0.00015864,2]
[356043571,1741830699383,-5000.0,0.00015705,2]
[356043572,1741830704554,-4548.33567163,0.00014867,2]
[356043574,1741830933305,984700.0,0.000176,30]
[356043577,1741831760141,-1667.96704562,0.0001462,2]
[356043578,1741831760163,-1000.0,0.00014768,2]
[356043579,1741831760186,-263.89226858,0.00014867,2]
[356043616,1741831838019,-159.93619259,0.00014867,2]
[356043617,1741831838030,-215.89103221,0.00015597,2]
[356043618,1741831838039,-151.23,0.00015686,2]
[356043619,1741831838049,-66.103176,0.00015687,2]
[356043663,1741831841128,-0.04883686,0.00015687,2]
[356043701,1741831856357,-159.07194306,0.00015612,2]
[356043702,1741831862098,-254.33352981,0.00015612,2]
[356043704,1741831875916,-163.1497412,0.00014697,2]
[356043705,1741831883965,-336.8502588,0.00014697,2]
[356043706,1741831896078,-163.1497412,0.00014697,2]
[356043707,1741831904084,-500.0,0.00014697,2]
[356043708,1741831909737,-390.67403948,0.00014697,2]
[356043709,1741831947249,-390.67403948,0.00014697,2]
[356043710,1741831955523,-300.0,0.00014697,2]
[356043711,1741831967867,-212.97330718,0.00014697,2]
[356043712,1741831979243,-188.90465321,0.00014697,2]
[356043713,1741831980976,-311.09534679,0.00014697,2]
[356043716,1741832044735,-300.0,0.00014697,2]
[356043717,1741832045785,-200.0,0.00014697,2]
[356043718,1741832049018,-200.0,0.00014697,2]
[356043719,1741832073060,-300.0,0.00014697,2]
[356043720,1741832086072,-343.03276474,0.00014674,2]
[356043721,1741832092669,-482.10016869,0.00014674,2]
[356043722,1741832104653,-321.96652914,0.00014674,2]
[356043723,1741832109698,-178.03347086,0.00014674,2]
[356043724,1741832124259,-152.0,0.00014674,2]
[356043725,1741832125377,-169.96652914,0.00014674,2]
[356043726,1741832163356,-321.96652914,0.00014674,2]
[356043727,1741832170718,-260.82652914,0.00014674,2]
[356043728,1741832176215,-178.03347086,0.00014674,2]
[356043729,1741832180015,-321.96652914,0.00014674,2]
[356043730,1741832225467,-178.03347086,0.00014674,2]
[356043732,1741832232574,-229.3187156,0.00014575,2]
[356043733,1741832233603,-270.6812844,0.00014674,2]
[356043734,1741832282051,-213.47276474,0.00014674,2]
[356043735,1741832283747,-286.52723526,0.00014674,2]
[356043736,1741832296406,-500.0,0.00014674,2]
[356043737,1741832300252,-200.0,0.00014674,2]
[356043738,1741832312716,-300.0,0.00014674,2]
[356043739,1741832314014,-268.41512939,0.00014674,2]
[356043740,1741832314039,-231.58487061,0.00014697,2]
[356043742,1741832343729,-300.0,0.00014697,2]
[356043744,1741832402701,-78.29019205,0.00014697,2]
[356043745,1741832402724,-121.70980795,0.00015391,2]
[356043747,1741832415315,-188.90465321,0.00015495,2]
[356043748,1741832415346,-300.0,0.00015594,2]
[356043749,1741832415372,-11.09534679,0.00015595,2]
[356043750,1741832416324,-498.08618861,0.00015595,2]
[356043751,1741832419157,-455.83657613,0.00015595,2]
[356043752,1741832434063,-294.44497894,0.00015594,2]
[356043753,1741832435691,-205.55502106,0.00015594,2]
[356043754,1741832440169,-246.4,0.00015594,2]
[356043755,1741832442871,-48.04497894,0.00015594,2]
[356043756,1741832442896,-451.95502106,0.00015594,2]
[356043757,1741832447122,-48.04497894,0.00015594,2]
[356043758,1741832447149,-451.95502106,0.00015594,2]
[356043759,1741832452358,-48.04497894,0.00015594,2]
[356043760,1741832452384,-102.95502106,0.00015594,2]
[356043761,1741832455570,-349.0,0.00015594,2]
[356043764,1741832583029,-165.29157155,0.00015494,2]
[356043765,1741832583055,-134.70842845,0.00015592,2]
[356043770,1741832764128,-227.4927,0.00015591,2]
[356043874,1741833032709,-604.86610131,0.00015439,2]
[356043876,1741833032719,-344.29169733,0.00015492,2]
[356043878,1741833032729,-169.57936198,0.00015492,2]
[356043880,1741833032740,-442.69181259,0.00015589,2]
[356043882,1741833032750,-500.0,0.00015589,2]
[356043883,1741833032760,-500.0,0.00015589,2]
[356043884,1741833032770,-265.48821917,0.0001559,2]
[356043885,1741833032779,-151.0,0.0001559,2]
[356043887,1741833032789,-151.0,0.0001559,2]
[356043889,1741833032799,-151.0,0.0001559,2]
[356043891,1741833032809,-151.0,0.0001559,2]
[356043892,1741833032819,-160.796051,0.0001559,2]
[356043893,1741833032829,-151.0,0.0001559,2]
[356043894,1741833032839,-151.0,0.0001559,2]
[356043895,1741833032849,-226.479052,0.0001559,2]
[356043896,1741833032860,-1067.44,0.0001559,2]
[356043897,1741833032872,-151.0,0.0001559,2]
[356043898,1741833032883,-151.0,0.0001559,2]
[356043899,1741833032892,-151.0,0.0001559,2]
[356043900,1741833032902,-153.449663,0.0001559,2]
[356043901,1741833032912,-500.0,0.0001559,2]
[356043902,1741833032921,-500.0,0.0001559,2]
[356043903,1741833032931,-500.0,0.0001559,2]
[356043904,1741833032941,-623.06,0.0001559,2]
[356043905,1741833032950,-151.0,0.00015591,2]
[356043907,1741833032960,-151.0,0.00015591,2]
[356043908,1741833032970,-151.0,0.00015591,2]
[356043909,1741833032981,-151.0,0.00015591,2]
[356043910,1741833032991,-151.738006,0.00015591,2]
[356043912,1741833033002,-151.0,0.00015591,2]
[356043914,1741833033015,-151.0,0.00015591,2]
[356043916,1741833033025,-234.578612,0.00015591,2]
[356043917,1741833033034,-19189.05004139,0.00015591,2]
[356043936,1741833041034,-0.01136131,0.00015589,2]
[356043943,1741833043286,-59.83386356,0.00015589,2]
[356043944,1741833043332,-440.15477513,0.00015589,2]
[356043945,1741833043342,-500.0,0.00015589,2]
[356043946,1741833043351,-500.0,0.00015589,2]
[356043947,1741833043361,-500.0,0.00015589,2]
[356043948,1741833043370,-500.0,0.00015589,2]
[356043950,1741833043380,-500.0,0.00015589,2]
[356043952,1741833043390,-500.0,0.00015589,2]
[356043953,1741833043399,-500.0,0.00015589,2]
[356043954,1741833043409,-310.0,0.00015589,2]
[356043956,1741833043419,-500.0,0.00015589,2]
[356043957,1741833043429,-500.0,0.00015589,2]
[356043958,1741833043440,-500.0,0.00015589,2]
[356043959,1741833043450,-500.0,0.00015589,2]
[356043960,1741833043459,-500.0,0.00015589,2]
[356043961,1741833043469,-500.0,0.00015589,2]
[356043962,1741833043479,-500.0,0.00015589,2]
[356043963,1741833043488,-500.0,0.00015589,2]
[356043964,1741833043498,-38.18801969,0.00015589,2]
[356043972,1741833396492,45.36487035,0.000176,30]
[356043973,1741833403342,661.06405631,0.00016,120]
[356043974,1741833427032,500.0,0.000185,120]
[356043976,1741833459316,500.0,0.000185,120]
[356043977,1741833494951,-328.24161419,0.00015486,2]
[356043978,1741833494975,-300.0,0.00015489,2]
[356043979,1741833494998,-339.15872396,0.0001549,2]
[356043980,1741833495021,-99032.59966185,0.0001549,2]
[356043982,1741833620672,-287.21141246,0.00015389,2]
[356043983,1741833634430,-261.78858754,0.00015395,2]
[356043985,1741833782759,-9.53839162,0.00015395,2]
[356043986,1741833782783,-172.26598447,0.0001542,2]
[356043987,1741833810904,-216.90901454,0.00015387,2]
[356043989,1741834173093,-159.9361926,0.0001447,2]
[356043990,1741834222070,-210.5038074,0.00015,2]
[356043997,1741834232599,-416.66666667,0.00015,2]
[356044008,1741834234150,-178.03347086,0.00015,2]
[356044088,1741834241220,-1037.5904971,0.00015,2]
[356044089,1741834241230,-2927.95390832,0.00015372,2]
[356044090,1741834241240,-218.96926166,0.00015392,2]
[356044091,1741834241249,-218.96926162,0.00015417,2]
[356044092,1741834241259,-218.96926162,0.00015441,2]
[356044093,1741834241269,-218.96926162,0.00015466,2]
[356044094,1741834241278,-436.92788136,0.00015471,2]
[356044095,1741834241290,-63.07211864,0.00015471,2]
[356044096,1741834241299,-500.0,0.00015471,2]
[356044097,1741834241309,-500.0,0.00015471,2]
[356044098,1741834241319,-500.0,0.00015471,2]
[356044099,1741834241328,-135.06360293,0.00015471,2]
[356044100,1741834241416,-0.02079942,0.00015471,2]
[356044115,1741834243387,-364.91559765,0.00015471,2]
[356044116,1741834243396,-277.89751235,0.00015471,2]
[356044117,1741834243408,-222.10248765,0.00015471,2]
[356044118,1741834243417,-500.0,0.00015471,2]
[356044119,1741834243427,-430.38776562,0.00015471,2]
[356044120,1741834243436,-380.86813534,0.00015471,2]
[356044121,1741834243445,-500.0,0.00015471,2]
[356044122,1741834243454,-500.0,0.00015471,2]
[356044123,1741834243464,-500.0,0.00015471,2]
[356044124,1741834243473,-500.0,0.00015471,2]
[356044125,1741834243483,-500.0,0.00015471,2]
[356044126,1741834243492,-500.0,0.00015471,2]
[356044127,1741834243502,-0.86718469,0.00015471,2]
[356044130,1741834243514,-302.23434211,0.00015471,2]
[356044132,1741834243526,-196.8984732,0.00015471,2]
[356044133,1741834243535,-500.0,0.00015471,2]
[356044134,1741834243544,-500.0,0.00015471,2]
[356044135,1741834243555,-490.6015268,0.00015471,2]
[356044155,1741834246542,-9.3984732,0.00015471,2]
[356044156,1741834246553,-494.5717268,0.00015471,2]
[356044157,1741834889050,-1376.57,0.0001537,2]
[356044159,1741834985650,1484.08719749,0.00018481,120]
[356044231,1741835438547,-2403.05766777,0.00015268,2]
[356044232,1741835438557,-228.50765324,0.00015285,2]
[356044233,1741835438567,-167.5,0.00015357,2]
[356044234,1741835438577,-167.5,0.00015358,2]
[356044235,1741835438586,-1000.0,0.00015363,2]
[356044236,1741835438596,-500.0,0.00015366,2]
[356044237,1741835438605,-152.4022576,0.00015366,2]
[356044238,1741835438615,-500.0,0.00015366,2]
[356044239,1741835438625,-500.0,0.00015366,2]
[356044241,1741835438634,-500.0,0.00015366,2]
[356044243,1741835438644,-489.78062479,0.00015366,2]
[356044244,1741835438655,-10.21937521,0.00015366,2]
[356044245,1741835438665,-500.0,0.00015366,2]
[356044246,1741835438675,-500.0,0.00015366,2]
[356044247,1741835438684,-500.0,0.00015366,2]
[356044248,1741835438693,-137.1259181,0.00015366,2]
[356044249,1741835438705,-362.8740819,0.00015366,2]
[356044250,1741835438714,-500.0,0.00015366,2]
[356044251,1741835438723,-500.0,0.00015366,2]
[356044252,1741835438733,-500.0,0.00015366,2]
[356044253,1741835438742,-500.0,0.00015366,2]
[356044254,1741835438751,-500.0,0.00015366,2]
[356044255,1741835438761,-500.0,0.00015366,2]
[356044256,1741835438770,-492.42310755,0.00015366,2]
[356044257,1741835438782,-7.57689245,0.00015366,2]
[356044258,1741835438791,-500.0,0.00015366,2]
[356044259,1741835438801,-500.0,0.00015366,2]
[356044260,1741835438811,-500.0,0.00015366,2]
[356044261,1741835438821,-500.0,0.00015366,2]
[356044262,1741835438831,-500.0,0.00015366,2]
[356044263,1741835438840,-500.0,0.00015366,2]
[356044264,1741835438851,-338.16734683,0.00015366,2]
[356044269,1741835440706,-161.83265317,0.00015366,2]
[356044270,1741835440716,-338.16643369,0.00015366,2]
[356044301,1741835476249,-300.0,0.00015365,2]
[356044302,1741835476282,-161.83356631,0.00015366,2]
[356044303,1741835476311,-500.0,0.00015366,2]
[356044304,1741835476339,-500.0,0.00015366,2]
[356044305,1741835476369,-573.78713695,0.00015366,2]
[356044306,1741835476403,-500.0,0.00015366,2]
[356044307,1741835476430,-500.0,0.00015366,2]
[356044308,1741835476459,-243.07783456,0.00015366,2]
[356044309,1741835476485,-500.0,0.00015367,2]
[356044310,1741835476511,-263.43003934,0.00015367,2]
[356044311,1741835476539,-500.0,0.00015367,2]
[356044312,1741835476565,-405.77162561,0.00015367,2]
[356044313,1741835476593,-419.86410183,0.00015367,2]
[356044314,1741835476619,-500.0,0.00015367,2]
[356044315,1741835476647,-500.0,0.00015367,2]
[356044316,1741835476674,-21900.12,0.00015368,2]
[356044317,1741835476704,-500.0,0.00015368,2]
[356044318,1741835476731,-2748.77,0.00015368,2]
[356044319,1741835476758,-1422.9,0.00015368,2]
[356044320,1741835476784,-1022.96,0.00015368,2]
[356044321,1741835476810,-802.54,0.00015368,2]
[356044322,1741835476835,-500.0,0.00015368,2]
[356044323,1741835476861,-500.0,0.00015368,2]
[356044324,1741835476888,-151.0,0.00015368,2]
[356044325,1741835476911,-500.0,0.00015368,2]
[356044326,1741835476936,-500.0,0.00015368,2]
[356044327,1741835476961,-151.0,0.00015368,2]
[356044328,1741835476986,-500.0,0.00015368,2]
[356044329,1741835477013,-500.0,0.00015368,2]
[356044330,1741835477039,-500.0,0.00015368,2]
[356044331,1741835477066,-500.0,0.00015368,2]
[356044332,1741835477092,-1609.29,0.00015368,2]
[356044333,1741835477119,-616.17,0.00015368,2]
[356044334,1741835477144,-500.0,0.00015368,2]
[356044335,1741835477170,-151.0,0.00015368,2]
[356044336,1741835477198,-500.0,0.00015368,2]
[356044337,1741835477223,-500.0,0.00015368,2]
[356044338,1741835477250,-151.0,0.00015368,2]
[356044339,1741835477275,-151.0,0.00015368,2]
[356044340,1741835477300,-500.0,0.00015368,2]
[356044341,1741835477324,-151.0,0.00015369,2]
[356044342,1741835477348,-1062.005503,0.00015369,2]
[356044343,1741835477372,-1062.005503,0.00015369,2]
[356044344,1741835477397,-151.0,0.00015369,2]
[356044345,1741835477421,-151.0,0.00015369,2]
[356044346,1741835477447,-3328.42,0.00015369,2]
[356044347,1741835477471,-247.929375,0.00015369,2]
[356044348,1741835477495,-647.349993,0.00015369,2]
[356044349,1741835477520,-151.0,0.00015369,2]
[356044350,1741835477545,-647.349993,0.00015369,2]
[356044351,1741835477570,-354.44094,0.00015369,2]
[356044352,1741835477594,-354.44094,0.00015369,2]
[356044353,1741835477619,-3222.44,0.00015369,2]
[356044354,1741835477644,-151.0,0.00015369,2]
[356044355,1741835477670,-151.0,0.00015369,2]
[356044356,1741835477695,-646.975664,0.00015369,2]
[356044357,1741835477721,-2584.51,0.00015369,2]
[356044358,1741835477745,-646.975664,0.00015369,2]
[356044359,1741835477769,-670.106376,0.00015369,2]
[356044360,1741835477793,-670.106376,0.00015369,2]
[356044361,1741835477818,-7622.34,0.00015369,2]
[356044362,1741835477842,-236.192368,0.00015369,2]
[356044363,1741835477866,-236.192368,0.00015369,2]
[356044364,1741835477890,-3641.73,0.00015369,2]
[356044365,1741835477914,-236.192368,0.00015369,2]
[356044366,1741835477938,-151.0,0.00015369,2]
[356044367,1741835477961,-236.192368,0.00015369,2]
[356044368,1741835477986,-151.0,0.00015369,2]
[356044369,1741835478010,-4403.547557,0.00015369,2]
[356044370,1741835478034,-4403.547557,0.00015369,2]
[356044371,1741835478058,-151.0,0.00015369,2]
[356044372,1741835478083,-151.0,0.00015369,2]
[356044373,1741835478108,-4403.547557,0.00015369,2]
[356044374,1741835478133,-4403.547557,0.00015369,2]
[356044375,1741835478158,-1782.62,0.00015369,2]
[356044376,1741835478183,-500.0,0.00015369,2]
[356044377,1741835478211,-1448.76,0.00015369,2]
[356044378,1741835478238,-500.0,0.00015369,2]
[356044379,1741835478264,-4315.86,0.00015369,2]
[356044380,1741835478302,-5902.67,0.00015369,2]
[356044381,1741835478330,-237.533866,0.00015369,2]
[356044382,1741835478358,-151.0,0.00015369,2]
[356044383,1741835478384,-151.0,0.00015369,2]
[356044384,1741835478412,-151.0,0.00015369,2]
[356044385,1741835478619,-151.0,0.00015369,2]
[356044386,1741835478646,-153.885807,0.00015369,2]
[356044387,1741835478671,-500.0,0.00015369,2]
[356044388,1741835478698,-500.0,0.00015369,2]
[356044389,1741835478724,-500.0,0.00015369,2]
[356044390,1741835478750,-4596.5,0.00015369,2]
[356044391,1741835478776,-151.0,0.00015369,2]
[356044392,1741835478802,-151.0,0.00015369,2]
[356044393,1741835478827,-151.0,0.00015369,2]
[356044394,1741835478853,-151.0,0.00015369,2]
[356044395,1741835478878,-151.0,0.00015369,2]
[356044396,1741835478902,-151.0,0.00015369,2]
[356044397,1741835478927,-151.0,0.00015369,2]
[356044398,1741835478952,-151.0,0.00015369,2]
[356044399,1741835478977,-151.0,0.00015369,2]
[356044400,1741835479001,-151.0,0.00015369,2]
[356044401,1741835479026,-151.0,0.00015369,2]
[356044402,1741835479050,-151.0,0.00015369,2]
[356044403,1741835479074,-151.0,0.00015369,2]
[356044404,1741835479098,-153.545754,0.00015369,2]
[356044405,1741835479122,-151.0,0.00015369,2]
[356044406,1741835479146,-9780.24,0.00015371,2]
[356044407,1741835479169,-500.0,0.00015371,2]
[356044408,1741835479193,-500.0,0.00015371,2]
[356044409,1741835479218,-2945.24,0.00015371,2]
[356044410,1741835479243,-1893.14,0.00015371,2]
[356044411,1741835479267,-236.192368,0.00015371,2]
[356044412,1741835479292,-236.192368,0.00015371,2]
[356044413,1741835479315,-151.0,0.00015371,2]
[356044414,1741835479339,-4403.547557,0.00015371,2]
[356044415,1741835479363,-151.0,0.00015371,2]
[356044416,1741835479387,-4403.547557,0.00015371,2]
[356044417,1741835479415,-7520.84,0.00015371,2]
[356044418,1741835479439,-3476.95,0.00015371,2]
[356044419,1741835479464,-500.0,0.00015371,2]
[356044420,1741835479489,-4315.86,0.00015371,2]
[356044421,1741835479512,-4315.86,0.00015371,2]
[356044422,1741835479535,-4315.86,0.00015371,2]
[356044423,1741835479560,-4315.86,0.00015371,2]
[356044424,1741835479584,-4315.86,0.00015371,2]